fUSD/lending_fUSD_20250207
["ID","MTS","AMOUNT","RATE_DAILY","PERIOD"]
[352100377,1738948232584,-2689.62241,0.0001315,2]
[352100378,1738948232605,-69.65025691,0.0001315,2]
[352100379,1738948232614,-373.14974307,0.0001345,2]
[352100380,1738948232626,-57.85025693,0.0001345,2]
[352100381,1738948232636,-1986.86326547,0.0001349,2]
[352100382,1738948232648,-432.7066115,0.0001349,2]
[352100383,1738948232659,-336.52,0.0001349,2]
[352100384,1738948232671,-451.5850078,0.0001349,2]
[352100385,1738948232682,-392.0635844,0.0001349,2]
[352100386,1738948232694,-402.45,0.0001349,2]
[352100387,1738948232706,-287.77821065,0.0001349,2]
[352100388,1738948232717,-329.82399976,0.0001349,2]
[352100389,1738948232729,-476.83174565,0.0001349,2]
[352100390,1738948232741,-348.816881,0.0001349,2]
[352100391,1738948232752,-321.51096328,0.0001349,2]
[352100392,1738948232764,-269.46,0.0001349,2]
[352100393,1738948232775,-523.23600804,0.0001349,2]
[352100394,1738948232809,-7237.57638648,0.0001349,2]
[352100395,1738948232847,-4840.5,0.0001349,2]
[352100396,1738948232875,-11103.81733597,0.0001349,2]
[352100397,1738948232884,-250.0,0.00013492,2]
[352100398,1738948232894,-1106.14,0.00013502,2]
[352100399,1738948232905,-296.88,0.00013534,2]
[352100400,1738948232918,-500.0,0.00013551,2]
[352100401,1738948232933,-178.5,0.00013699,2]
[352100402,1738948232942,-431.0,0.0001375,2]
[352100403,1738948232953,-901.38,0.00014006,2]
[352100404,1738948232963,-2000.0,0.0001404,2]
[352100405,1738948232972,-1139.40449753,0.00014043,2]
[352100406,1738948232998,-691.92358749,0.00014043,2]
[352100560,1738948238353,-22068.67191498,0.00014043,2]
[352100562,1738948238363,-416.3,0.00014049,2]
[352100564,1738948238374,-431.0,0.0001406,2]
[352100566,1738948238383,-2181.19,0.00014073,2]
[352100568,1738948238392,-1000.0,0.00014093,2]
[352100570,1738948238402,-2751.0,0.00014117,2]
[352100573,1738948238411,-1500.0,0.00014134,2]
[352100574,1738948238421,-150.0,0.00014151,2]
[352100576,1738948238431,-431.0,0.0001436,2]
[352100579,1738948238441,-845.08,0.00014447,2]
[352100581,1738948238450,-3200.0,0.0001452,2]
[352100582,1738948238459,-431.0,0.0001466,2]
[352100585,1738948238470,-617.44,0.00014807,2]
[352100587,1738948238480,-431.0,0.0001496,2]
[352100589,1738948238490,-431.0,0.0001527,2]
[352100590,1738948238500,-353.08,0.00015551,2]
[352100592,1738948238510,-353.08,0.00015556,2]
[352100594,1738948238519,-353.08,0.0001556,2]
[352100596,1738948238529,-353.08,0.00015564,2]
[352100598,1738948238540,-353.08,0.00015568,2]
[352100600,1738948238550,-431.0,0.0001557,2]
[352100602,1738948238560,-353.08,0.00015572,2]
[352100604,1738948238570,-353.08,0.00015576,2]
[352100606,1738948238581,-353.08,0.0001558,2]
[352100608,1738948238593,-353.08,0.00015584,2]
[352100611,1738948238604,-353.08,0.00015588,2]
[352100613,1738948238614,-353.08,0.00015592,2]
[352100615,1738948238624,-353.08,0.00015596,2]
[352100617,1738948238634,-353.08,0.000156,2]
[352100619,1738948238644,-353.08,0.00015605,2]
[352100621,1738948238654,-353.08,0.00015609,2]
[352100623,1738948238664,-353.08,0.00015613,2]
[352100625,1738948238674,-353.08,0.00015617,2]
[352100627,1738948238683,-353.08,0.00015621,2]
[352100629,1738948238694,-353.08,0.00015625,2]
[352100631,1738948238704,-353.08,0.00015629,2]
[352100633,1738948238713,-1000.0,0.00015855,2]
[352100635,1738948238723,-431.0,0.0001587,2]
[352100637,1738948238733,-3200.0,0.0001589,2]
[352100639,1738948238744,-1677.24118258,0.00015979,3]
[352100641,1738948238754,-1677.24118258,0.00015979,3]
[352100643,1738948238764,-150.0,0.00016027,2]
[352100645,1738948238774,-500.0,0.00016164,2]
[352100647,1738948238784,-500.0,0.00016164,2]
[352100649,1738948238794,-526.7312232,0.00016169,2]
[352100651,1738948238803,-431.0,0.0001617,2]
[352100653,1738948238813,-642.0,0.000162,3]
[352100655,1738948238822,-1000.0,0.000162,2]
[352100657,1738948238832,-838.0,0.000163,3]
[352100659,1738948238845,-1000.0,0.000163,2]
[352100661,1738948238856,-1000.0,0.000163,2]
[352100663,1738948238865,-1000.0,0.000163,2]
[352100665,1738948238877,-1000.0,0.000163,2]
[352100667,1738948238888,-1000.0,0.000163,2]
[352100669,1738948238899,-1000.0,0.000163,2]
[352100671,1738948238908,-1000.0,0.000163,2]
[352100673,1738948238918,-42254.74944172,0.00016336,3]
[352100676,1738948238928,-635.49949673,0.00016386,2]
[352100700,1738948239102,-1955.98499742,0.000164,2]
[352100703,1738948239120,-369.49530258,0.000164,2]
[352100705,1738948239130,-2185.83277266,0.000164,2]
[352100708,1738948239142,-18144.0,0.000164,2]
[352100721,1738948239266,-2536.34613391,0.000164,2]
[352100723,1738948239278,-955.19893084,0.000164,2]
[352100725,1738948239290,-810.60210278,0.000164,2]
[352100727,1738948239302,-3578.92913015,0.000164,2]
[352100729,1738948239312,-5399.82721888,0.000164,2]
[352100731,1738948239322,-500.00000001,0.00016438,2]
[352100733,1738948239331,-500.0,0.00016438,2]
[352100735,1738948239343,-500.0,0.00016438,2]
[352100737,1738948239354,-500.0,0.00016438,2]
[352100739,1738948239363,-500.0,0.00016438,2]
[352100741,1738948239373,-500.0,0.00016438,2]
[352100743,1738948239383,-500.0,0.00016438,2]
[352100745,1738948239392,-500.0,0.00016438,2]
[352100747,1738948239402,-423.68,0.00016438,2]
[352100749,1738948239411,-22.56365119,0.00016438,2]
[352100752,1738948239423,-132.95586881,0.00016438,2]
[352100754,1738948239433,-500.0,0.00016438,2]
[352100756,1738948239442,-430.75,0.00016438,2]
[352100758,1738948239452,-500.0,0.00016438,2]
[352100760,1738948239462,-500.0,0.00016438,2]
[352100762,1738948239472,-500.0,0.00016438,2]
[352100764,1738948239482,-1262.898824,0.00016438,2]
[352100766,1738948239492,-505.6573369,0.00016438,2]
[352100768,1738948239502,-500.0,0.00016438,2]
[352100770,1738948239512,-500.0,0.00016438,2]
[352100772,1738948239521,-1186.201026,0.00016438,2]
[352100774,1738948239531,-500.0,0.00016438,2]
[352100776,1738948239541,-160.439542,0.00016438,2]
[352100778,1738948239551,-271.76310229,0.00016438,2]
[352100780,1738948239563,-66.68794302,0.00016438,2]
[352100782,1738948239572,-500.0,0.00016438,2]
[352100784,1738948239582,-500.0,0.00016438,2]
[352100786,1738948239594,-500.0,0.00016438,2]
[352100788,1738948239604,-264.03571458,0.00016438,2]
[352100790,1738948239616,-235.96428542,0.00016438,2]
[352100792,1738948239625,-500.0,0.00016438,2]
[352100793,1738948239634,-500.0,0.00016438,2]
[352100795,1738948239644,-500.0,0.00016438,2]
[352100797,1738948239653,-8.30911385,0.00016438,2]
[352100823,1738948240365,-425.1908862,0.00016438,2]
[352100825,1738948240375,-500.67421052,0.00016438,2]
[352100827,1738948240386,-500.53192226,0.00016438,2]
[352100829,1738948240395,-505.84196152,0.00016438,2]
[352100831,1738948240405,-527.42616887,0.00016438,2]
[352100832,1738948240415,-502.31308448,0.00016438,2]
[352100835,1738948240425,-500.0,0.00016438,2]
[352100837,1738948240435,-424.96083067,0.00016438,2]
[352100838,1738948240445,-500.0,0.00016438,2]
[352100840,1738948240455,-500.0,0.00016438,2]
[352100842,1738948240465,-500.0,0.00016438,2]
[352100844,1738948240475,-500.0,0.00016438,2]
[352100846,1738948240485,-500.0,0.00016438,2]
[352100848,1738948240495,-500.0,0.00016438,2]
[352100851,1738948240504,-500.0,0.00016438,2]
[352100852,1738948240513,-500.0,0.00016438,2]
[352100855,1738948240523,-500.0,0.00016438,2]
[352100856,1738948240532,-500.0,0.00016438,2]
[352100858,1738948240542,-500.0,0.00016438,2]
[352100860,1738948240552,-616.79015251,0.00016438,2]
[352100862,1738948240562,-500.0,0.00016438,2]
[352100864,1738948240572,-500.0,0.00016438,2]
[352100866,1738948240582,-500.0,0.00016438,2]
[352100868,1738948240594,-500.0,0.00016438,2]
[352100870,1738948240603,-500.0,0.00016438,2]
[352100872,1738948240613,-500.0,0.00016438,2]
[352100874,1738948240623,-500.0,0.00016438,2]
[352100876,1738948240633,-500.0,0.00016438,2]
[352100879,1738948240643,-500.0,0.00016438,2]
[352100881,1738948240653,-500.0,0.00016438,2]
[352100883,1738948240662,-500.0,0.00016438,2]
[352100884,1738948240671,-500.0,0.00016438,2]
[352100886,1738948240681,-500.0,0.00016438,2]
[352100888,1738948240690,-500.0,0.00016438,2]
[352100889,1738948240699,-500.0,0.00016438,2]
[352100890,1738948240708,-500.0,0.00016438,2]
[352100891,1738948240717,-500.0,0.00016438,2]
[352100892,1738948240727,-500.0,0.00016438,2]
[352100893,1738948240735,-500.0,0.00016438,7]
[352100894,1738948240745,-500.0,0.00016438,2]
[352100895,1738948240754,-500.0,0.00016438,2]
[352100896,1738948240763,-500.0,0.00016438,2]
[352100897,1738948240772,-500.0,0.00016438,2]
[352100898,1738948240781,-336.42400898,0.00016438,2]
[352100899,1738948240790,-500.0,0.00016438,2]
[352100900,1738948240800,-500.0,0.00016438,2]
[352100901,1738948240809,-500.0,0.00016438,2]
[352100902,1738948240818,-500.0,0.00016438,2]
[352100903,1738948240827,-500.0,0.00016438,2]
[352100904,1738948240836,-500.0,0.00016438,2]
[352100906,1738948240847,-574.19307595,0.00016438,2]
[352100908,1738948240856,-500.0,0.00016438,2]
[352100910,1738948240867,-500.0,0.00016438,2]
[352100912,1738948240877,-500.0,0.00016438,2]
[352100914,1738948240886,-500.0,0.00016438,2]
[352100916,1738948240896,-500.0,0.00016438,2]
[352100919,1738948240905,-500.0,0.00016438,2]
[352100921,1738948240916,-500.0,0.00016438,2]
[352100923,1738948240926,-500.0,0.00016438,2]
[352100925,1738948240935,-482.51,0.00016438,2]
[352100927,1738948240945,-500.0,0.00016438,2]
[352100929,1738948240955,-500.0,0.00016438,2]
[352100930,1738948240965,-370.38514615,0.00016438,2]
[352100932,1738948240975,-500.0,0.00016438,2]
[352100935,1738948240984,-500.0,0.00016438,2]
[352100937,1738948240994,-500.0,0.00016438,2]
[352100939,1738948241003,-500.0,0.00016438,2]
[352100941,1738948241013,-500.0,0.00016438,2]
[352100942,1738948241022,-500.0,0.00016438,2]
[352100945,1738948241032,-500.0,0.00016438,2]
[352100947,1738948241042,-500.0,0.00016438,2]
[352100949,1738948241052,-500.0,0.00016438,2]
[352100951,1738948241061,-588.6,0.00016438,2]
[352100953,1738948241071,-500.0,0.00016438,2]
[352100955,1738948241080,-500.0,0.00016438,2]
[352100957,1738948241091,-500.0,0.00016438,2]
[352100959,1738948241101,-500.0,0.00016438,2]
[352100961,1738948241110,-500.0,0.00016438,2]
[352100963,1738948241120,-500.0,0.00016438,2]
[352100965,1738948241129,-500.0,0.00016438,2]
[352100967,1738948241139,-500.0,0.00016438,2]
[352100969,1738948241148,-522.43,0.00016438,2]
[352100971,1738948241157,-500.0,0.00016438,2]
[352100973,1738948241167,-506.61427436,0.00016438,2]
[352100975,1738948241177,-500.0,0.00016438,2]
[352100977,1738948241187,-458.51582006,0.00016438,2]
[352100979,1738948241196,-1497.39,0.00016438,2]
[352100981,1738948241206,-500.0,0.00016438,2]
[352100983,1738948241216,-500.0,0.00016438,2]
[352100985,1738948241226,-500.0,0.00016438,2]
[352100987,1738948241236,-500.0,0.00016438,2]
[352100989,1738948241245,-500.0,0.00016438,2]
[352100991,1738948241255,-500.0,0.00016438,2]
[352100993,1738948241265,-500.0,0.00016438,2]
[352100995,1738948241275,-1453.16,0.00016438,2]
[352100997,1738948241284,-509.40178655,0.00016438,2]
[352100999,1738948241293,-511.3411309,0.00016438,2]
[352101001,1738948241303,-500.0,0.00016438,2]
[352101003,1738948241312,-500.0,0.00016438,2]
[352101005,1738948241322,-501.40731737,0.00016438,2]
[352101007,1738948241332,-500.0,0.00016438,2]
[352101009,1738948241343,-500.0,0.00016438,2]
[352101011,1738948241352,-500.0,0.00016438,2]
[352101013,1738948241362,-500.0,0.00016438,2]
[352101015,1738948241371,-500.0,0.00016438,2]
[352101017,1738948241380,-500.98481675,0.00016438,2]
[352101019,1738948241390,-500.0,0.00016438,2]
[352101021,1738948241399,-500.0,0.00016438,2]
[352101023,1738948241409,-686.09,0.00016438,2]
[352101025,1738948241418,-500.0,0.00016438,2]
[352101027,1738948241428,-500.0,0.00016438,2]
[352101029,1738948241437,-500.0,0.00016438,2]
[352101031,1738948241447,-500.0,0.00016438,2]
[352101033,1738948241456,-500.0,0.00016438,2]
[352101035,1738948241465,-500.0,0.00016438,2]
[352101037,1738948241475,-500.0,0.00016438,2]
[352101039,1738948241484,-500.0,0.00016438,2]
[352101041,1738948241493,-500.0,0.00016438,2]
[352101043,1738948241502,-500.96545758,0.00016438,2]
[352101045,1738948241511,-500.0,0.00016438,2]
[352101047,1738948241520,-500.0,0.00016438,2]
[352101049,1738948241530,-500.0,0.00016438,2]
[352101051,1738948241539,-765.65,0.00016438,2]
[352101053,1738948241548,-500.0,0.00016438,2]
[352101055,1738948241558,-500.0,0.00016438,2]
[352101057,1738948241567,-500.0,0.00016438,2]
[352101059,1738948241576,-500.0,0.00016438,2]
[352101061,1738948241586,-500.0,0.00016438,2]
[352101063,1738948241596,-500.0,0.00016438,2]
[352101065,1738948241605,-500.0,0.00016438,2]
[352101067,1738948241615,-500.0,0.00016438,2]
[352101069,1738948241624,-500.0,0.00016438,2]
[352101071,1738948241633,-500.0,0.00016438,2]
[352101073,1738948241642,-500.0,0.00016438,2]
[352101075,1738948241652,-500.0,0.00016438,2]
[352101077,1738948241661,-500.0,0.00016438,2]
[352101079,1738948241670,-500.0,0.00016438,2]
[352101081,1738948241680,-500.0,0.00016438,2]
[352101083,1738948241689,-500.0,0.00016438,2]
[352101085,1738948241700,-500.0,0.00016438,2]
[352101087,1738948241709,-500.0,0.00016438,2]
[352101089,1738948241718,-500.0,0.00016438,2]
[352101091,1738948241727,-248.84530139,0.00016438,2]
[352101093,1738948241736,-500.0,0.00016438,2]
[352101095,1738948241746,-500.0,0.00016438,2]
[352101097,1738948241755,-500.0,0.00016438,2]
[352101099,1738948241764,-331.75304231,0.00016438,2]
[352101101,1738948241773,-500.0,0.00016438,2]
[352101103,1738948241783,-1623.37,0.00016438,2]
[352101105,1738948241792,-502.67410164,0.00016438,2]
[352101107,1738948241802,-500.0,0.00016438,2]
[352101109,1738948241812,-500.0,0.00016438,2]
[352101111,1738948241821,-500.0,0.00016438,2]
[352101113,1738948241830,-557.51075936,0.00016438,2]
[352101115,1738948241841,-500.0,0.00016438,2]
[352101117,1738948241854,-500.81242321,0.00016438,2]
[352101119,1738948241866,-608.43453207,0.00016438,2]
[352101121,1738948241875,-500.0,0.00016438,2]
[352101123,1738948241885,-500.0,0.00016438,2]
[352101125,1738948241895,-500.0,0.00016438,2]
[352101127,1738948241905,-500.0,0.00016438,2]
[352101129,1738948241914,-500.0,0.00016438,2]
[352101131,1738948241924,-501.68864989,0.00016438,2]
[352101133,1738948241933,-500.0,0.00016438,2]
[352101135,1738948241943,-500.0,0.00016438,2]
[352101137,1738948241953,-500.0,0.00016438,2]
[352101139,1738948241963,-500.0,0.00016438,2]
[352101141,1738948241972,-500.0,0.00016438,2]
[352101143,1738948241982,-500.0,0.00016438,2]
[352101145,1738948241991,-500.0,0.00016438,2]
[352101147,1738948242001,-1493.77,0.00016438,2]
[352101149,1738948242011,-500.0,0.00016438,2]
[352101151,1738948242020,-500.0,0.00016438,2]
[352101153,1738948242030,-500.0,0.00016438,2]
[352101155,1738948242039,-500.0,0.00016438,2]
[352101157,1738948242049,-500.0,0.00016438,2]
[352101159,1738948242058,-2425.38,0.00016438,60]
[352101161,1738948242067,-500.0,0.00016438,2]
[352101163,1738948242076,-500.0,0.00016438,2]
[352101165,1738948242086,-500.0,0.00016438,2]
[352101167,1738948242096,-500.0,0.00016438,2]
[352101169,1738948242105,-500.0,0.00016438,2]
[352101171,1738948242115,-500.0,0.00016438,2]
[352101173,1738948242124,-500.0,0.00016438,2]
[352101175,1738948242133,-500.0,0.00016438,2]
[352101177,1738948242143,-500.0,0.00016438,2]
[352101179,1738948242152,-500.0,0.00016438,2]
[352101181,1738948242162,-500.0,0.00016438,2]
[352101183,1738948242172,-500.0,0.00016438,2]
[352101185,1738948242181,-500.0,0.00016438,2]
[352101187,1738948242193,-1861.85,0.00016438,2]
[352101189,1738948242202,-500.0,0.00016438,2]
[352101191,1738948242214,-500.0,0.00016438,2]
[352101193,1738948242224,-500.0,0.00016438,2]
[352101195,1738948242233,-500.0,0.00016438,2]
[352101197,1738948242242,-500.0,0.00016438,2]
[352101199,1738948242251,-498.54699344,0.00016438,2]
[352101201,1738948242261,-500.0,0.00016438,2]
[352101203,1738948242270,-500.0,0.00016438,2]
[352101205,1738948242280,-500.0,0.00016438,2]
[352101207,1738948242290,-500.0,0.00016438,2]
[352101209,1738948242300,-500.0,0.00016438,2]
[352101211,1738948242309,-464.28326518,0.00016438,2]
[352101213,1738948242319,-504.84488505,0.00016438,2]
[352101215,1738948242330,-500.0,0.00016438,2]
[352101217,1738948242342,-176.06386447,0.00016438,2]
[352101260,1738948242734,-982.37613553,0.00016438,2]
[352101262,1738948242744,-500.0,0.00016438,2]
[352101264,1738948242753,-500.0,0.00016438,2]
[352101266,1738948242763,-500.0,0.00016438,2]
[352101268,1738948242772,-500.0,0.00016438,2]
[352101270,1738948242781,-500.0,0.00016438,2]
[352101272,1738948242790,-500.0,0.00016438,2]
[352101274,1738948242799,-500.0,0.00016438,2]
[352101276,1738948242808,-500.0,0.00016438,2]
[352101278,1738948242817,-543.05,0.00016438,2]
[352101280,1738948242827,-500.0,0.00016438,2]
[352101282,1738948242836,-500.0,0.00016438,2]
[352101285,1738948242848,-1119.38,0.00016438,2]
[352101286,1738948242858,-500.0,0.00016438,2]
[352101289,1738948242870,-1159.65,0.00016438,2]
[352101290,1738948242880,-500.0,0.00016438,2]
[352101293,1738948242890,-500.0,0.00016438,2]
[352101295,1738948242899,-500.0,0.00016438,2]
[352101297,1738948242908,-500.0,0.00016438,2]
[352101299,1738948242920,-500.0,0.00016438,2]
[352101301,1738948242929,-500.0,0.00016438,2]
[352101303,1738948242939,-500.0,0.00016438,2]
[352101305,1738948242948,-500.0,0.00016438,2]
[352101307,1738948242958,-500.0,0.00016438,2]
[352101308,1738948242967,-500.0,0.00016438,2]
[352101310,1738948242977,-500.0,0.00016438,2]
[352101312,1738948242986,-500.0,0.00016438,2]
[352101314,1738948242996,-500.0,0.00016438,2]
[352101317,1738948243005,-500.0,0.00016438,2]
[352101319,1738948243015,-500.0,0.00016438,2]
[352101320,1738948243023,-500.0,0.00016438,2]
[352101322,1738948243033,-500.0,0.00016438,2]
[352101324,1738948243042,-500.0,0.00016438,2]
[352101326,1738948243054,-500.0,0.00016438,2]
[352101329,1738948243069,-1070.12,0.00016438,2]
[352101331,1738948243079,-505.78309902,0.00016438,2]
[352101332,1738948243089,-500.0,0.00016438,2]
[352101335,1738948243098,-500.0,0.00016438,2]
[352101336,1738948243107,-500.0,0.00016438,2]
[352101338,1738948243116,-500.0,0.00016438,2]
[352101340,1738948243125,-664.05,0.00016438,2]
[352101342,1738948243135,-500.0,0.00016438,2]
[352101344,1738948243144,-500.0,0.00016438,2]
[352101346,1738948243153,-500.0,0.00016438,2]
[352101348,1738948243162,-500.0,0.00016438,2]
[352101351,1738948243172,-500.0,0.00016438,2]
[352101353,1738948243181,-500.0,0.00016438,2]
[352101355,1738948243190,-500.0,0.00016438,2]
[352101357,1738948243199,-1277.06,0.00016438,2]
[352101360,1738948243209,-500.0,0.00016438,2]
[352101363,1738948243218,-1322.75,0.00016438,2]
[352101365,1738948243227,-500.0,0.00016438,2]
[352101367,1738948243236,-500.0,0.00016438,2]
[352101369,1738948243246,-500.0,0.00016438,2]
[352101371,1738948243255,-500.0,0.00016438,2]
[352101373,1738948243264,-500.0,0.00016438,2]
[352101375,1738948243273,-500.0,0.00016438,2]
[352101377,1738948243282,-500.0,0.00016438,2]
[352101379,1738948243291,-500.0,0.00016438,2]
[352101381,1738948243300,-500.0,0.00016438,2]
[352101384,1738948243310,-500.0,0.00016438,2]
[352101387,1738948243319,-500.0,0.00016438,2]
[352101390,1738948243328,-628.39,0.00016438,2]
[352101393,1738948243338,-500.0,0.00016438,2]
[352101396,1738948243348,-500.0,0.00016438,2]
[352101398,1738948243357,-576.37,0.00016438,2]
[352101400,1738948243366,-417.31611719,0.00016438,2]
[352101403,1738948243375,-546.35,0.00016438,2]
[352101406,1738948243385,-366.26933737,0.00016438,2]
[352101409,1738948243395,-500.0,0.00016438,2]
[352101411,1738948243404,-500.0,0.00016438,2]
[352101413,1738948243413,-500.0,0.00016438,2]
[352101415,1738948243422,-500.0,0.00016438,2]
[352101418,1738948243431,-500.0,0.00016438,2]
[352101420,1738948243441,-500.0,0.00016438,2]
[352101422,1738948243450,-500.0,0.00016438,2]
[352101424,1738948243459,-500.0,0.00016438,2]
[352101426,1738948243469,-500.0,0.00016438,2]
[352101428,1738948243478,-500.0,0.00016438,2]
[352101430,1738948243488,-2750.529953,0.00016438,2]
[352101432,1738948243498,-500.0,0.00016438,2]
[352101434,1738948243507,-500.0,0.00016438,2]
[352101436,1738948243518,-1501.49,0.00016438,2]
[352101438,1738948243528,-500.0,0.00016438,2]
[352101440,1738948243537,-576.66,0.00016438,2]
[352101442,1738948243546,-501.38003324,0.00016438,2]
[352101444,1738948243556,-2846.65,0.00016438,2]
[352101446,1738948243565,-500.0,0.00016438,2]
[352101448,1738948243574,-439.14169139,0.00016438,2]
[352101451,1738948243584,-500.0,0.00016438,2]
[352101453,1738948243601,-500.0,0.00016438,2]
[352101455,1738948243610,-500.0,0.00016438,2]
[352101457,1738948243621,-500.0,0.00016438,2]
[352101459,1738948243630,-1287.58,0.00016438,2]
[352101461,1738948243639,-519.3,0.00016438,2]
[352101463,1738948243648,-500.0,0.00016438,2]
[352101465,1738948243657,-500.0,0.00016438,2]
[352101467,1738948243667,-500.3,0.00016438,2]
[352101470,1738948243676,-452.83576256,0.00016438,2]
[352101472,1738948243685,-1031.11,0.00016438,2]
[352101474,1738948243694,-585.60331672,0.00016438,2]
[352101476,1738948243703,-500.0,0.00016438,2]
[352101478,1738948243713,-500.0,0.00016438,2]
[352101480,1738948243722,-500.0,0.00016438,2]
[352101482,1738948243731,-500.0,0.00016438,2]
[352101484,1738948243740,-500.0,0.00016438,2]
[352101486,1738948243750,-500.0,0.00016438,2]
[352101488,1738948243759,-1720.83,0.00016438,2]
[352101490,1738948243770,-500.0,0.00016438,2]
[352101492,1738948243779,-500.0,0.00016438,2]
[352101494,1738948243789,-500.0,0.00016438,2]
[352101496,1738948243799,-500.0,0.00016438,2]
[352101498,1738948243808,-500.0,0.00016438,2]
[352101500,1738948243817,-1294.95,0.00016438,2]
[352101502,1738948243826,-500.0,0.00016438,2]
[352101504,1738948243835,-501.64296306,0.00016438,2]
[352101506,1738948243847,-533.12,0.00016438,2]
[352101508,1738948243858,-500.0,0.00016438,2]
[352101509,1738948243868,-500.0,0.00016438,2]
[352101511,1738948243878,-500.0,0.00016438,2]
[352101514,1738948243888,-1970.62,0.00016438,2]
[352101515,1738948243899,-500.0,0.00016438,2]
[352101518,1738948243909,-500.0,0.00016438,2]
[352101520,1738948243918,-500.0,0.00016438,2]
[352101521,1738948243928,-761.51,0.00016438,2]
[352101523,1738948243937,-500.0,0.00016438,2]
[352101525,1738948243949,-1655.11,0.00016438,2]
[352101527,1738948243958,-500.0,0.00016438,2]
[352101529,1738948243968,-569.43,0.00016438,2]
[352101531,1738948243978,-2675.99,0.00016438,2]
[352101533,1738948243987,-500.0,0.00016438,2]
[352101535,1738948243999,-500.0,0.00016438,2]
[352101538,1738948244010,-500.0,0.00016438,2]
[352101541,1738948244019,-500.0,0.00016438,2]
[352101543,1738948244027,-500.0,0.00016438,2]
[352101546,1738948244037,-1563.69,0.00016438,2]
[352101549,1738948244046,-500.0,0.00016438,2]
[352101552,1738948244055,-247.47374496,0.00016438,2]
[352101555,1738948244064,-500.0,0.00016438,2]
[352101558,1738948244074,-506.51708554,0.00016438,2]
[352101560,1738948244082,-500.0,0.00016438,2]
[352101562,1738948244093,-500.0,0.00016438,2]
[352101564,1738948244103,-500.0,0.00016438,2]
[352101566,1738948244112,-500.0,0.00016438,2]
[352101568,1738948244124,-500.0,0.00016438,2]
[352101571,1738948244139,-500.0,0.00016438,2]
[352101572,1738948244149,-500.0,0.00016438,2]
[352101574,1738948244158,-500.0,0.00016438,2]
[352101576,1738948244167,-500.0,0.00016438,2]
[352101577,1738948244177,-500.0,0.00016438,2]
[352101578,1738948244186,-1482.37,0.00016438,2]
[352101579,1738948244196,-500.0,0.00016438,2]
[352101580,1738948244205,-3064.15,0.00016438,2]
[352101581,1738948244215,-500.0,0.00016438,2]
[352101582,1738948244225,-447.25,0.00016438,2]
[352101583,1738948244234,-500.0,0.00016438,2]
[352101584,1738948244243,-1412.08,0.00016438,2]
[352101585,1738948244253,-500.0,0.00016438,2]
[352101586,1738948244262,-500.0,0.00016438,2]
[352101587,1738948244273,-500.0,0.00016438,2]
[352101588,1738948244283,-500.0,0.00016438,2]
[352101589,1738948244296,-517.95385101,0.00016438,2]
[352101591,1738948244305,-2988.68,0.00016438,2]